fUSD/lending_fUSD_20241205
["ID","MTS","AMOUNT","RATE_DAILY","PERIOD"]
[344416321,1733429452273,-300.0,0.00024999,10]
[344416322,1733429452284,-300.0,0.00024999,10]
[344416323,1733429452295,-300.0,0.00024999,10]
[344416324,1733429452306,-300.0,0.00024999,10]
[344416325,1733429452318,-265.33445518,0.00024999,10]
[344416326,1733429452330,-150.0,0.00025,2]
[344416327,1733429452341,-4123.24859329,0.00025,30]
[344416348,1733430507655,85000.0,7e-05,2]
[344416350,1733430533855,-200.0,6.965e-05,2]
[344416351,1733430533885,-84800.0,7e-05,2]
[344416356,1733430564122,-800.0,6.1e-05,2]
[344416357,1733430564147,-1600.0,6.2e-05,2]
[344416358,1733430564168,-1373.361424,6.3e-05,2]
[344416359,1733430565632,-1126.638576,6.3e-05,2]
[344416360,1733430565657,-3300.0,6.4e-05,2]
[344416361,1733430565683,-4200.0,6.5e-05,2]
[344416362,1733430571080,-1007.97,0.00016658,30]
[344416363,1733430588398,-800.0,6.6e-05,2]
[344416364,1733430588426,-800.0,6.7e-05,2]
[344416365,1733430588452,-800.0,6.8e-05,2]
[344416366,1733430588481,-800.0,6.9e-05,2]
[344416367,1733430588506,-687.0,6.93e-05,2]
[344416368,1733430588535,-72486.361424,7e-05,2]
[344416396,1733430631910,-1112.14,6.861e-05,2]
[344416397,1733430631921,-22787.86,6.861e-05,2]
[344416399,1733430631931,-150.0,6.999e-05,2]
[344416401,1733430631940,-1020535.90089359,7e-05,2]
[344416403,1733430631952,-352.58599661,7e-05,2]
[344416404,1733430631973,-589.7892,7e-05,2]
[344416405,1733430631983,-9668.1405134,7e-05,2]
[344416407,1733430632033,-4945.15,7e-05,2]
[344416408,1733430632044,-1215.89222756,7e-05,2]
[344416409,1733430632056,-1972.27668,7e-05,2]
[344416410,1733430632066,-4913.928,7e-05,2]
[344416411,1733430632098,-57831.19723031,7e-05,2]
[344416412,1733430632143,-186.91,7e-05,2]
[344416413,1733430632155,-2967.33905862,7e-05,2]
[344416414,1733430632265,-9848.2,7e-05,2]
[344416415,1733430632277,-818.81778443,7e-05,2]
[344416416,1733430632288,-2631.75350159,7e-05,2]
[344416440,1733430637827,-256764.17510405,7e-05,2]
[344416441,1733430637842,-19623.8,7e-05,2]
[344416442,1733430637854,-463.66000001,7e-05,2]
[344416443,1733430637865,-1794.67,7e-05,2]
[344416444,1733430638064,-9852.4987642,7e-05,2]
[344416445,1733430638075,-121648.10635824,7e-05,2]
[344416446,1733430638098,-2353.97635,7e-05,2]
[344416447,1733430638109,-8725.94428952,7e-05,2]
[344416448,1733430638123,-9495.57480771,7e-05,2]
[344416449,1733430638134,-3542.36491667,7e-05,2]
[344416450,1733430638145,-994.39181041,7e-05,2]
[344416451,1733430638160,-389.16149109,7e-05,2]
[344416452,1733430638182,-570.500004,7e-05,2]
[344416454,1733430638194,-6183.12399218,7e-05,2]
[344416456,1733430638206,-5376.62263911,7e-05,2]
[344416458,1733430638217,-98482.05631857,7e-05,2]
[344416476,1733430639793,-6718339.69528211,7e-05,2]
[344416477,1733430639852,-922.31789534,7e-05,2]
[344416478,1733430639864,-6616.39439855,7e-05,2]
[344416479,1733430639897,-859.08056592,7e-05,2]
[344416480,1733430639918,-3949.6836,7e-05,2]
[344416481,1733430639929,-437.27637278,7e-05,2]
[344416482,1733430639977,-5414.645,7e-05,2]
[344416483,1733430639988,-87763.4308809,7e-05,2]
[344416484,1733430640036,-3916.78720835,7e-05,2]
[344416485,1733430640097,-1967.20524,7e-05,2]
[344416487,1733430640109,-395.2445,7e-05,2]
[344416496,1733430642826,-120010.0,7e-05,2]
[344416497,1733430642884,-1372.6000005,7e-05,2]
[344416498,1733430642897,-14181.31308429,7e-05,2]
[344416499,1733430643169,-13804.79984,7e-05,2]
[344416500,1733430643182,-46161.0000025,7e-05,2]
[344416501,1733430643195,-4608.0000004,7e-05,2]
[344416502,1733430643230,-291.72897298,7e-05,2]
[344416503,1733430643242,-13366.38849656,7e-05,2]
[344416504,1733430643254,-12903.69263768,7e-05,2]
[344416505,1733430643265,-2532.65560998,7e-05,2]
[344416506,1733430643276,-2557.87565508,7e-05,2]
[344416507,1733430643348,-3155.49052176,7e-05,2]
[344416508,1733430643360,-526.3050015,7e-05,2]
[344416509,1733430643402,-9833.61745038,7e-05,2]
[344416519,1733430645818,-2332.33701546,7e-05,2]
[344416520,1733430645830,-18994.87861549,7e-05,2]
[344416521,1733430645845,-92685.6,7e-05,2]
[344416522,1733430645856,-4696.37003,7e-05,2]
[344416523,1733430645867,-280.92609018,7e-05,2]
[344416524,1733430646158,-2072.59583394,7e-05,2]
[344416525,1733430646173,-57705.0,7e-05,2]
[344416526,1733430646227,-312.23133037,7e-05,2]
[344416527,1733430646282,-587.480715,7e-05,2]
[344416528,1733430646293,-494329.20374935,7e-05,2]
[344416529,1733430646304,-1310.46781139,7e-05,2]
[344416741,1733430693772,-300.0,6.1e-05,2]
[344416742,1733430693801,-700.0,6.2e-05,2]
[344416743,1733430693828,-1100.0,6.3e-05,2]
[344416744,1733430693856,-1500.0,6.4e-05,2]
[344416745,1733430693890,-1900.0,6.5e-05,2]
[344416746,1733430834245,151.21,5.282e-05,2]
[344416747,1733430859813,-300.0,6.6e-05,2]
[344416748,1733430859842,-1001.6508842,6.6e-05,2]
[344416749,1733430859869,-3367.542737,6.6e-05,2]
[344416750,1733430859898,-151.21,6.603e-05,2]
[344416751,1733430859925,-205.32,6.603e-05,2]
[344416752,1733430859953,-300.0,6.7e-05,2]
[344416753,1733430946691,-250.0,6.714e-05,2]
[344416754,1733430946718,-681.91915745,6.778e-05,2]
[344416755,1733430946746,-2964.51,6.778e-05,2]
[344416756,1733430946775,-300.0,6.8e-05,2]
[344416757,1733430946800,-1524.0,6.861e-05,2]
[344416758,1733430946831,-300.0,6.899e-05,2]
[344416759,1733430946858,-300.0,6.9e-05,2]
[344416760,1733430946883,-57702.63722135,6.9e-05,2]
[344416766,1733431150281,-8188.0,6.899e-05,2]
[344416767,1733431150308,-150.0,6.899e-05,2]
[344416768,1733431150672,-240297.36277865,6.9e-05,2]
[344416769,1733431150701,-501.02234171,6.973e-05,2]
[344416770,1733431150730,-150.0,6.998e-05,2]
[344416771,1733431150758,-150.0,6.998e-05,3]
[344416772,1733431150788,-150.0,6.998e-05,3]
[344416773,1733431150815,-150.0,6.998e-05,3]
[344416774,1733431150842,-150.0,6.998e-05,3]
[344416775,1733431150869,-150.0,6.998e-05,2]
[344416776,1733431150895,-150.0,6.998e-05,2]
[344416777,1733431150921,-150.0,6.998e-05,2]
[344416778,1733431150948,-150.0,6.998e-05,2]
[344416779,1733431150975,-220.67818919,6.999e-05,2]
[344416780,1733431151001,-500.0,6.999e-05,2]
[344416781,1733431151029,-430.40386068,6.999e-05,2]
[344416782,1733431151054,-1171.42437367,6.999e-05,2]
[344416783,1733431151080,-314.94531427,6.999e-05,2]
[344416784,1733431151109,-30305148.74757769,7e-05,2]
[344416785,1733431167207,1020.58,0.00016658,30]
[344416791,1733431760158,-152.63,5.624e-05,2]
[344416792,1733431760182,-156.59,6.382e-05,2]
[344416793,1733431760203,-1500.0,6.408e-05,2]
[344416794,1733431760224,-3136.38389182,6.438e-05,2]
[344416814,1733431832031,-1015.96610818,6.438e-05,2]
[344416815,1733431832045,-200.0,6.442e-05,2]
[344416816,1733431832054,-9207.03838468,6.443e-05,2]
[344416817,1733431832065,-1495.21904309,6.443e-05,2]
[344416818,1733431832094,-5673.06282248,6.443e-05,2]
[344416819,1733431832154,-637.26944885,6.443e-05,2]
[344416820,1733431832165,-1832.1416959,6.443e-05,2]
[344416821,1733431832176,-1859.46357618,6.443e-05,2]
[344416822,1733431832188,-1860.72336847,6.443e-05,2]
[344416823,1733431832203,-1335.08166035,6.443e-05,2]
[344416824,1733431832212,-220.40299043,6.465e-05,2]
[344416825,1733431832236,-3333.25700957,6.465e-05,2]
[344416826,1733431832245,-8565.61,6.471e-05,2]
[344416827,1733431832255,-250.0,6.527e-05,2]
[344416828,1733431832265,-300.0,6.527e-05,2]
[344416829,1733431832274,-5347.61,6.559e-05,2]
[344416830,1733431832283,-150.0,6.877e-05,2]
[344416831,1733431832296,-208981.47185019,7e-05,2]
[344416832,1733431832324,-31515.10224845,7e-05,2]
[344416833,1733431832334,-192.33336648,7e-05,2]
[344416834,1733431832343,-169.4,7.025e-05,2]
[344416835,1733431832353,-2000.0,7.082e-05,2]
[344416836,1733431832363,-250.0,7.106e-05,2]
[344416837,1733431832373,-156.59,7.18e-05,2]
[344416838,1733431832383,-33490.40484387,7.195e-05,2]
[344416839,1733431832394,-4903.92,7.195e-05,2]
[344416840,1733431832409,-2321.3963899,7.195e-05,2]
[344416841,1733431832420,-2973.0124241,7.195e-05,2]
[344416842,1733431832431,-387.645,7.195e-05,2]
[344416843,1733431832442,-24940.55878596,7.195e-05,2]
[344416844,1733431832462,-5644.78051872,7.195e-05,2]
[344416877,1733431838060,-4935.83,6.466e-05,2]
[344416878,1733431838072,-43286.19941187,7.195e-05,2]
[344416879,1733431838172,-1294.5281733,7.195e-05,2]
[344416880,1733431838186,-2887.37532058,7.195e-05,2]
[344416881,1733431838231,-2720.0,7.195e-05,2]
[344416882,1733431838245,-4323.0,7.195e-05,2]
[344416883,1733431838258,-168827.1791317,7.195e-05,2]
[344416884,1733431838269,-166.68,7.28e-05,2]
[344416885,1733431838281,-22716.99475875,7.295e-05,2]
[344416886,1733431838293,-505.36,7.295e-05,2]
[344416887,1733431838307,-504.92,7.295e-05,2]
[344416888,1733431838319,-502.24,7.295e-05,2]
[344416889,1733431838331,-503.71,7.295e-05,2]
[344416890,1733431838342,-491.91,7.295e-05,2]
[344416891,1733431838354,-493.35,7.295e-05,2]
[344416892,1733431838366,-496.09,7.295e-05,2]
[344416893,1733431838377,-505.61,7.295e-05,2]
[344416894,1733431838389,-150.0,7.479e-05,2]
[344416895,1733431838400,-2144.110866,7.499e-05,2]
[344416925,1733431838661,-6850.0,7.499e-05,2]
[344416927,1733431838675,-876.2613247,7.499e-05,2]
[344416959,1733431843063,-364.19956251,7.499e-05,2]
[344416960,1733431843075,-2330.51260827,7.499e-05,2]
[344416961,1733431843089,-1378.9849,7.644e-05,2]
[344416962,1733431843099,-503.51,7.666e-05,2]
[344416963,1733431843108,-495.53,7.666e-05,2]
[344416964,1733431843117,-502.54,7.666e-05,2]
[344416966,1733431843127,-503.89,7.666e-05,2]
[344416967,1733431843136,-502.97,7.666e-05,2]
[344416968,1733431843145,-502.63,7.666e-05,2]
[344416969,1733431843155,-500.81,7.666e-05,2]
[344416970,1733431843166,-508.22,7.666e-05,2]
[344416971,1733431843176,-494.15,7.666e-05,2]
[344416972,1733431843185,-507.55,7.666e-05,2]
[344416973,1733431843195,-493.08,7.666e-05,2]
[344416974,1733431843205,-493.85,7.666e-05,2]
[344416975,1733431843214,-498.87,7.666e-05,2]
[344416976,1733431843224,-507.49,7.667e-05,2]
[344416977,1733431843234,-500.0,7.667e-05,2]
[344416978,1733431843243,-509.15,7.667e-05,2]
[344416979,1733431843253,-508.07,7.667e-05,2]
[344416980,1733431843262,-502.62,7.667e-05,2]
[344416981,1733431843272,-503.44,7.667e-05,2]
[344416982,1733431843281,-507.54,7.667e-05,2]
[344416983,1733431843291,-496.87,7.667e-05,2]
[344416984,1733431843303,-494.78,7.667e-05,2]
[344416985,1733431843312,-499.67,7.667e-05,2]
[344416986,1733431843322,-508.46,7.667e-05,2]
[344416987,1733431843332,-490.09,7.667e-05,2]
[344416988,1733431843341,-508.77,7.667e-05,2]
[344416990,1733431843351,-501.82,7.667e-05,2]
[344416991,1733431843360,-491.68,7.671e-05,2]
[344416992,1733431843369,-507.09,7.674e-05,2]
[344416993,1733431843378,-19864.32087315,7.677e-05,2]
[344416994,1733431843388,-3535.422343,7.677e-05,2]
[344416995,1733431843397,-2651.56675715,7.677e-05,2]
[344416997,1733431843407,-14898.24065486,7.678e-05,2]
[344416998,1733431843416,-3535.422343,7.678e-05,2]
[344416999,1733431843425,-1491.506301,7.678e-05,2]
[344417000,1733431843435,-6285.19527627,7.678e-05,2]
[344417001,1733431843444,-11173.68049114,7.678e-05,2]
[344417002,1733431843454,-838.97229424,7.678e-05,2]
[344417003,1733431843463,-14898.24065486,7.679e-05,2]
[344417004,1733431843473,-1118.62972565,7.679e-05,2]
[344417005,1733431843483,-509.21,7.679e-05,2]
[344417006,1733431843493,-19864.32087315,7.68e-05,2]
[344417007,1733431843503,-1118.62972565,7.68e-05,2]
[344417008,1733431843516,-838.97229424,7.68e-05,2]
[344417009,1733431843527,-6285.19527627,7.68e-05,2]
[344417010,1733431843536,-2651.56675715,7.68e-05,2]
[344417011,1733431843546,-8380.26036836,7.68e-05,2]
[344417012,1733431843558,-6285.19527627,7.68e-05,2]
[344417013,1733431843567,-1491.506301,7.681e-05,2]
[344417014,1733431843577,-1491.506301,7.681e-05,2]
[344417015,1733431843587,-838.97229424,7.682e-05,2]
[344417016,1733431843596,-6285.19527627,7.682e-05,2]
[344417017,1733431843605,-11173.68049114,7.682e-05,2]
[344417018,1733431843615,-6285.19527627,7.683e-05,2]
[344417019,1733431843624,-4713.8964572,7.683e-05,2]
[344417020,1733431843633,-19864.32087315,7.683e-05,2]
[344417021,1733431843643,-1118.62972565,7.684e-05,2]
[344417022,1733431843652,-1988.67506786,7.684e-05,2]
[344417023,1733431843661,-6285.19527627,7.684e-05,2]
[344417024,1733431843670,-2651.56675715,7.684e-05,2]
[344417025,1733431843679,-4713.8964572,7.685e-05,2]
[344417027,1733431843689,-2651.56675715,7.685e-05,2]
[344417029,1733431843698,-4713.8964572,7.686e-05,2]
[344417030,1733431843707,-2651.56675715,7.686e-05,2]
[344417031,1733431843717,-14898.24065486,7.686e-05,2]
[344417032,1733431843726,-8380.26036836,7.686e-05,2]
[344417033,1733431843735,-3535.422343,7.686e-05,2]
[344417034,1733431843746,-11173.68049114,7.686e-05,2]
[344417035,1733431843755,-2651.56675715,7.688e-05,2]
[344417036,1733431843765,-1988.67506786,7.688e-05,2]
[344417037,1733431843775,-1491.506301,7.688e-05,2]
[344417038,1733431843784,-1118.62972565,7.688e-05,2]
[344417039,1733431843795,-19864.32087315,7.688e-05,2]
[344417041,1733431843808,-495.42,7.688e-05,2]
[344417042,1733431843818,-14898.24065486,7.688e-05,2]
[344417043,1733431843827,-14898.24065486,7.689e-05,2]
[344417044,1733431843837,-4713.8964572,7.689e-05,2]
[344417045,1733431843847,-838.97229424,7.689e-05,2]
[344417046,1733431843856,-4713.8964572,7.69e-05,2]
[344417047,1733431843865,-1491.506301,7.69e-05,2]
[344417048,1733431843874,-14898.24065486,7.69e-05,2]
[344417049,1733431843883,-3535.422343,7.691e-05,2]
[344417050,1733431843893,-1988.67506786,7.691e-05,2]
[344417051,1733431843902,-4713.8964572,7.692e-05,2]
[344417052,1733431843912,-1118.62972565,7.692e-05,2]
[344417053,1733431843922,-1988.67506786,7.692e-05,2]
[344417054,1733431843932,-1491.506301,7.692e-05,2]
[344417055,1733431843942,-3535.422343,7.694e-05,2]
[344417056,1733431843952,-8380.26036836,7.694e-05,2]
[344417057,1733431843962,-11173.68049114,7.694e-05,2]
[344417058,1733431843971,-11173.68049114,7.694e-05,2]
[344417059,1733431843981,-1988.67506786,7.694e-05,2]
[344417060,1733431843991,-19864.32087315,7.695e-05,2]
[344417061,1733431844002,-8380.26036836,7.695e-05,2]
[344417062,1733431844011,-19864.32087315,7.695e-05,2]
[344417063,1733431844021,-11173.68049114,7.695e-05,2]
[344417064,1733431844032,-838.97229424,7.697e-05,2]
[344417065,1733431844042,-8380.26036836,7.697e-05,2]
[344417066,1733431844054,-1988.67506786,7.698e-05,2]
[344417067,1733431844064,-1118.62972565,7.698e-05,2]
[344417068,1733431844074,-8380.26036836,7.698e-05,2]
[344417069,1733431844084,-838.97229424,7.699e-05,2]
[344417070,1733431844094,-3535.422343,7.7e-05,2]
[344417071,1733431844103,-502.79,7.703e-05,2]
[344417072,1733431844114,-493.79,7.703e-05,2]
[344417073,1733431844128,-504.12,7.727e-05,2]
[344417074,1733431844137,-509.83,7.767e-05,2]
[344417075,1733431844146,-499.47,7.767e-05,2]
[344417076,1733431844155,-505.07,7.767e-05,2]
[344417077,1733431844164,-507.89,7.866e-05,2]
[344417078,1733431844173,-496.78,7.867e-05,2]
[344417079,1733431844182,-493.02,7.867e-05,2]
[344417080,1733431844192,-507.04,7.867e-05,2]
[344417081,1733431844201,-506.23,7.867e-05,2]
[344417082,1733431844210,-169.4,7.903e-05,2]
[344417083,1733431844221,-156.59,7.978e-05,2]
[344417084,1733431844231,-3572.56,8.219e-05,2]
[344417085,1733431844241,-1000.0,8.219e-05,2]
[344417086,1733431844252,-250.0,8.219e-05,2]
[344417087,1733431844261,-152.63,8.435e-05,2]
[344417088,1733431844270,-166.68,8.482e-05,2]
[344417089,1733431844279,-200.0,8.74e-05,2]
[344417090,1733431844290,-219.35,8.74e-05,2]
[344417091,1733431844300,-156.59,8.776e-05,2]
[344417092,1733431844309,-169.4,8.782e-05,2]
[344417093,1733431844318,-1000.0,9.247e-05,2]
[344417094,1733431844327,-156.59,9.573e-05,2]
[344417095,1733431844336,-169.4,9.66e-05,2]
[344417096,1733431844346,-104327.87421835,0.0001,2]
[344417097,1733431844355,-3000.0,0.0001,2]
[344417098,1733431844364,-1053.78,0.000102,2]
[344417099,1733431844374,-1000.0,0.00010274,2]
[344417100,1733431844384,-3572.56,0.00010382,2]
[344417101,1733431844393,-285.46,0.00010475,2]
[344417102,1733431844403,-169.4,0.00010538,2]
[344417103,1733431844414,-255.66182267,0.000107,2]
[344417104,1733431844423,-979.24464684,0.000108,2]
[344417105,1733431844432,-196.02090067,0.000109,2]
[344417106,1733431844441,-196.02090066,0.000109,2]
[344417107,1733431844451,-3000.0,0.0001093,2]
[344417108,1733431844460,-506.27,0.00010959,2]
[344417109,1733431844469,-150.0,0.00010959,2]
[344417110,1733431844479,-333.120505,0.00011148,3]
[344417111,1733431844488,-1000.0,0.00011301,2]
[344417112,1733431844497,-333.120505,0.00011448,3]
[344417113,1733431844508,-2751.0,0.00011507,2]
[344417114,1733431844519,-299.37763607,0.00011688,2]
[344417115,1733431844529,-333.120505,0.00011748,3]
[344417116,1733431844538,-15486.73067952,0.00011888,2]
[344417117,1733431844550,-333.120505,0.00012148,3]
[344417118,1733431844560,-1000.0,0.00012329,2]
[344417119,1733431844569,-333.120505,0.00012448,3]
[344417120,1733431844578,-2500.0,0.0001248,2]
[344417121,1733431844588,-293.10827035,0.000125,2]
[344417122,1733431844597,-3572.56,0.00012545,2]
[344417123,1733431844607,-333.120505,0.00012748,3]
[344417124,1733431844616,-384.08505235,0.000129,2]
[344417125,1733431844625,-46888.34957124,0.000129,2]
[344417126,1733431844634,-1560.08133981,0.000129,2]
[344417127,1733431844644,-6484.9464372,0.000129,2]
[344417128,1733431844653,-196.02090066,0.000129,2]
[344417129,1733431844662,-7851.07535674,0.000129,2]
[344417130,1733431844672,-2640.04010485,0.000129,2]
[344417131,1733431844681,-501.19354669,0.00012973,2]
[344417132,1733431844692,-9800.0,0.00012986,2]
[344417133,1733431844702,-1000.0,0.00012999,2]
[344417134,1733431844711,-524.1127,0.00012999,2]
[344417135,1733431844720,-183.31805039,0.00012999,2]
[344417136,1733431844730,-271.24966826,0.00012999,2]
[344417137,1733431844739,-1330.0,0.00013,2]
[344417138,1733431844748,-3002.04670919,0.00013,2]
[344417139,1733431844758,-4218.18378696,0.00013,2]
[344417140,1733431844767,-2389433.61327679,0.00013,2]
[344417141,1733431845240,-627.77928527,0.00013,2]
[344417142,1733431845251,-2278.69273048,0.00013,2]
[344417143,1733431845262,-2469.62290386,0.00013,2]
[344417144,1733431845273,-511.93854439,0.00013,2]
[344417145,1733431845284,-9829.8,0.00013,2]
[344417170,1733431847318,-3078.99999981,0.00013,2]
[344417171,1733431847329,-6946.00131151,0.00013,2]
[344417172,1733431847341,-2166.75,0.00013,2]
[344417173,1733431847352,-305.53600001,0.00013,2]
[344417174,1733431847364,-583.3924248,0.00013,2]
[344417175,1733431847375,-549.06000016,0.00013,2]
[344417176,1733431847386,-1083.09456239,0.00013,2]
[344417177,1733431847397,-2948.66025622,0.00013,2]
[344417178,1733431847409,-7535.00292431,0.00013,2]
[344417179,1733431847557,-4004.23990422,0.00013,2]
[344417180,1733431847576,-9154.20002,0.00013,2]
[344417181,1733431847588,-11623.46000171,0.00013,2]
[344417182,1733431847599,-3743.39944682,0.00013,2]
[344417183,1733431847611,-8325.07368957,0.00013,2]
[344417184,1733431847622,-5537.90496186,0.00013,2]
[344417185,1733431847633,-5137.42556837,0.00013,2]
[344417186,1733431847645,-63551.68019535,0.00013,2]
[344417187,1733431847656,-49639.17960001,0.00013,2]
[344417188,1733431913334,-2850.1048061,0.00013,2]
[344417189,1733431913616,-1068.58,0.00013,2]
[344417190,1733431913631,-157317.88059635,0.00013,2]
[344417191,1733431913659,-49000.0,0.00013,2]
[344417192,1733431913670,-23015.5,0.00013,2]
[344417193,1733431913698,-4947.19225,0.00013,2]
[344417194,1733431913713,-5572.55248375,0.00013,2]
[344417195,1733431913728,-3955.68571687,0.00013,2]
[344417196,1733431913740,-4941.244,0.00013,2]
[344417197,1733431913751,-3792.3,0.00013,2]
[344417198,1733431913766,-1520.099994,0.00013,2]
[344417199,1733431913778,-4716.35768,0.00013,2]
[344417200,1733431913789,-3036.54896054,0.00013,2]
[344417201,1733431913800,-4949.49308,0.00013,2]
[344417202,1733431913816,-5148.2681012,0.00013,2]
[344417203,1733431913830,-293.08478293,0.00013,2]
[344417204,1733431913845,-989798.80185398,0.00013,2]
[344417205,1733432004310,969.55,0.00016658,30]
[344417207,1733432589339,921.07,0.00016658,30]
[344417208,1733432948383,4000.0,0.00018,30]
[344417212,1733433032466,-150.0,6.899e-05,2]
[344417213,1733433032476,-388.88,6.9e-05,2]
[344417214,1733433036275,-477.1600351,6.9e-05,2]
[344417215,1733433036286,-20499.60000001,6.9e-05,2]
[344417216,1733433036390,-1589.31142775,6.9e-05,2]
[344417217,1733433036506,-9043.80716353,6.9e-05,2]
[344417218,1733433036565,-11136.376186,6.9e-05,2]
[344417280,1733433038261,-262.01443148,6.9e-05,2]
[344417281,1733433038272,-1105.67634645,6.9e-05,2]
[344417282,1733433038437,-7401.88262507,6.9e-05,2]
[344417283,1733433038496,-13163.40505,6.9e-05,2]
[344417284,1733433038612,-14953.11003177,6.9e-05,2]
[344417285,1733433038624,-9936.12882695,6.9e-05,2]
[344417290,1733433040119,-4466.66447669,6.9e-05,2]
[344417291,1733433040131,-994.61852676,6.9e-05,2]
[344417292,1733433040142,-574.56,6.9e-05,2]
[344417293,1733433040176,-496.030535,6.9e-05,2]
[344417294,1733433040187,-426.93753614,6.9e-05,2]
[344417295,1733433040293,-170954.90237029,6.9e-05,2]
[344417296,1733433040355,-1988.987,6.9e-05,2]
[344417297,1733433040366,-4881.60724375,6.9e-05,2]
[344417298,1733433040417,-383.53999999,6.9e-05,2]
[344417299,1733433040428,-496.4384144,6.9e-05,2]
[344417325,1733433043247,-11894.52,6.9e-05,2]
[344417326,1733433043258,-3828.00000001,6.9e-05,2]
[344417327,1733433043270,-2165.0,6.9e-05,2]
[344417328,1733433043281,-1852.800005,6.9e-05,2]
[344417329,1733433043292,-2638.04176786,6.9e-05,2]
[344417330,1733433043301,-255.0,7.589e-05,2]
[344417331,1733433043310,-387.77756594,7.678e-05,2]
[344417332,1733433043320,-200.0,7.679e-05,2]
[344417333,1733433043331,-200.0,7.679e-05,2]
[344417334,1733433043340,-200.0,7.679e-05,2]
[344417335,1733433043349,-200.0,7.68e-05,2]
[344417336,1733433043359,-517.03675458,7.681e-05,2]
[344417337,1733433043369,-200.0,7.681e-05,2]
[344417338,1733433043379,-290.83317445,7.682e-05,2]
[344417339,1733433043389,-290.83317445,7.682e-05,2]
[344417340,1733433043398,-218.12488084,7.683e-05,2]
[344417341,1733433043408,-200.0,7.683e-05,2]
[344417342,1733433043417,-200.0,7.683e-05,2]
[344417343,1733433043426,-200.0,7.684e-05,2]
[344417344,1733433043435,-200.0,7.684e-05,2]
[344417345,1733433043445,-200.0,7.685e-05,2]
[344417346,1733433043454,-387.77756594,7.685e-05,2]
[344417347,1733433043463,-200.0,7.685e-05,2]
[344417348,1733433043472,-218.12488084,7.685e-05,2]
[344417349,1733433043481,-290.83317445,7.685e-05,2]
[344417350,1733433043491,-689.38233944,7.685e-05,2]
[344417351,1733433043500,-218.12488084,7.686e-05,2]
[344417352,1733433043509,-689.38233944,7.687e-05,2]
[344417353,1733433043519,-200.0,7.687e-05,2]
[344417354,1733433043528,-200.0,7.687e-05,2]
[344417355,1733433043538,-517.03675458,7.687e-05,2]
[344417356,1733433043548,-290.83317445,7.687e-05,2]
[344417357,1733433043557,-200.0,7.687e-05,2]
[344417358,1733433043567,-200.0,7.688e-05,2]
[344417359,1733433043782,-200.0,7.688e-05,2]
[344417361,1733433043792,-689.38233944,7.688e-05,2]
[344417363,1733433043803,-387.77756594,7.688e-05,2]
[344417365,1733433043813,-387.77756594,7.688e-05,2]
[344417367,1733433043822,-218.12488084,7.689e-05,2]
[344417369,1733433043834,-200.0,7.689e-05,2]
[344417371,1733433043843,-200.0,7.689e-05,2]
[344417373,1733433043854,-200.0,7.689e-05,2]
[344417375,1733433043866,-517.03675458,7.69e-05,2]
[344417377,1733433043875,-689.38233944,7.69e-05,2]
[344417379,1733433043885,-200.0,7.69e-05,2]
[344417381,1733433043895,-200.0,7.69e-05,2]
[344417383,1733433043904,-200.0,7.69e-05,2]
[344417385,1733433043914,-200.0,7.69e-05,2]
[344417387,1733433043923,-200.0,7.691e-05,2]
[344417389,1733433043933,-200.0,7.692e-05,2]
[344417391,1733433043945,-218.12488084,7.692e-05,2]
[344417393,1733433043955,-517.03675458,7.692e-05,2]
[344417395,1733433043964,-200.0,7.693e-05,2]
[344417397,1733433043973,-689.38233944,7.693e-05,2]
[344417399,1733433043983,-200.0,7.694e-05,2]
[344417401,1733433043993,-200.0,7.694e-05,2]
[344417403,1733433044003,-517.03675458,7.694e-05,2]
[344417405,1733433044013,-517.03675458,7.695e-05,2]
[344417407,1733433044023,-200.0,7.695e-05,2]
[344417409,1733433044032,-200.0,7.695e-05,2]
[344417411,1733433044043,-387.77756594,7.696e-05,2]
[344417413,1733433044052,-200.0,7.697e-05,2]
[344417415,1733433044062,-290.83317445,7.698e-05,2]
[344417417,1733433044071,-290.83317445,7.698e-05,2]
[344417419,1733433044082,-218.12488084,7.699e-05,2]
[344417421,1733433044093,-200.0,7.699e-05,2]
[344417424,1733433044105,-689.38233944,7.699e-05,2]
[344417426,1733433044115,-200.0,7.699e-05,2]
[344417428,1733433044124,-387.77756594,7.7e-05,2]
[344417430,1733433044134,-433.0,8.348e-05,2]